[Event "*** Titled Tuesday Blitz"]
[Site "Chess.com"]
[Date "2019.03.05"]
[Round "3"]
[White "SanchezKelvin"]
[Black "DrVitman"]
[Result "0-1"]
[WhiteElo "2514"]
[BlackElo "2652"]
[TimeControl "180+2"]
[EndTime "13:42:33 PST"]
[Termination "DrVitman won on time"]

1. d4 {[%clk 0:03:01.9]} 1... Nf6 {[%clk 0:02:59.6]} 2. c4 {[%clk 0:03:00.8]}
2... e6 {[%clk 0:02:59.9]} 3. Nf3 {[%clk 0:03:00.9]} 3... Bb4+ {[%clk
0:03:00.5]} 4. Bd2 {[%clk 0:03:01.2]} 4... c5 {[%clk 0:03:01.5]} 5. e3 {[%clk
0:02:57.9]} 5... O-O {[%clk 0:02:58.6]} 6. Bd3 {[%clk 0:02:52.8]} 6... Bxd2+
{[%clk 0:02:48]} 7. Nbxd2 {[%clk 0:02:52.5]} 7... cxd4 {[%clk 0:02:48.3]} 8.
exd4 {[%clk 0:02:52.5]} 8... b6 {[%clk 0:02:44.6]} 9. Qe2 {[%clk 0:02:50]} 9...
Bb7 {[%clk 0:02:45.3]} 10. Rg1 {[%clk 0:02:38.3]} 10... d5 {[%clk 0:02:30.9]}
11. g4 {[%clk 0:02:21.4]} 11... dxc4 {[%clk 0:02:29.9]} 12. Nxc4 {[%clk
0:02:10.4]} 12... Nc6 {[%clk 0:02:30.1]} 13. O-O-O {[%clk 0:02:05.6]} 13... Nb4
{[%clk 0:02:27.3]} 14. Kb1 {[%clk 0:01:37.9]} 14... Nxd3 {[%clk 0:02:23.6]} 15.
Rxd3 {[%clk 0:01:35.9]} 15... Be4 {[%clk 0:02:05.2]} 16. g5 {[%clk 0:01:36.1]}
16... Bxd3+ {[%clk 0:02:06.1]} 17. Qxd3 {[%clk 0:01:36.5]} 17... Nd5 {[%clk
0:02:06.3]} 18. Nfe5 {[%clk 0:01:30.9]} 18... Rc8 {[%clk 0:01:50.9]} 19. h4
{[%clk 0:01:23.1]} 19... b5 {[%clk 0:01:50]} 20. Nd2 {[%clk 0:01:06.8]} 20...
Nb4 {[%clk 0:01:39.6]} 21. Qe4 {[%clk 0:00:57.9]} 21... Qd5 {[%clk 0:01:38.4]}
22. Qxd5 {[%clk 0:00:56.2]} 22... Nxd5 {[%clk 0:01:37.4]} 23. Ne4 {[%clk
0:00:54.1]} 23... Rfd8 {[%clk 0:01:33]} 24. h5 {[%clk 0:00:50.1]} 24... Nf4
{[%clk 0:01:26.9]} 25. Nf6+ {[%clk 0:00:31.5]} 25... gxf6 {[%clk 0:01:12.9]} 26.
gxf6+ {[%clk 0:00:31.6]} 26... Ng6 {[%clk 0:01:03.2]} 27. hxg6 {[%clk
0:00:27.3]} 27... fxg6 {[%clk 0:00:54.9]} 28. Rg4 {[%clk 0:00:21.8]} 28... Rc7
{[%clk 0:00:48.2]} 29. Re4 {[%clk 0:00:18.4]} 29... b4 {[%clk 0:00:33.6]} 30.
Nd3 {[%clk 0:00:13.1]} 30... Kf7 {[%clk 0:00:30.7]} 31. Rf4 {[%clk 0:00:10.5]}
31... a5 {[%clk 0:00:26.1]} 32. Ne5+ {[%clk 0:00:09.3]} 32... Kf8 {[%clk
0:00:26.2]} 33. Nd3 {[%clk 0:00:10.1]} 33... Rd5 {[%clk 0:00:19.9]} 34. Nc5
{[%clk 0:00:07.9]} 34... Kf7 {[%clk 0:00:18.4]} 35. Re4 {[%clk 0:00:08.7]} 35...
Rcxc5 {[%clk 0:00:18.6]} 36. dxc5 {[%clk 0:00:09.3]} 36... Rxc5 {[%clk 0:00:20]}
37. Rf4 {[%clk 0:00:04.9]} 37... Rf5 {[%clk 0:00:20.5]} 38. Rh4 {[%clk
0:00:05.6]} 38... h5 {[%clk 0:00:21.2]} 39. f4 {[%clk 0:00:05.2]} 39... Kxf6
{[%clk 0:00:21.2]} 40. Kc2 {[%clk 0:00:06.2]} 40... e5 {[%clk 0:00:22.5]} 41.
fxe5+ {[%clk 0:00:07.2]} 41... Rxe5 {[%clk 0:00:23.9]} 42. Kd3 {[%clk
0:00:08.2]} 42... Kg5 {[%clk 0:00:24.8]} 43. Rc4 {[%clk 0:00:08.7]} 43... h4
{[%clk 0:00:25.3]} 44. a3 {[%clk 0:00:09.5]} 44... bxa3 {[%clk 0:00:25.2]} 45.
bxa3 {[%clk 0:00:10.1]} 45... h3 {[%clk 0:00:26.1]} 0-1

[Event "*** Titled Tuesday Blitz"]
[Site "Chess.com"]
[Date "2019.03.05"]
[Round "3"]
[White "KRASAVCHIK2002"]
[Black "ALEXJR20"]
[Result "1-0"]
[WhiteElo "2316"]
[BlackElo "2182"]
[TimeControl "180+2"]
[EndTime "13:42:36 PST"]
[Termination "KRASAVCHIK2002 won on time"]

1. Nf3 {[%clk 0:03:01.9]} 1... d5 {[%clk 0:02:59.1]} 2. e3 {[%clk 0:03:00.9]}
2... Nf6 {[%clk 0:03:00.2]} 3. c4 {[%clk 0:03:00.9]} 3... c6 {[%clk 0:03:01.4]}
4. b3 {[%clk 0:03:00.3]} 4... Bf5 {[%clk 0:02:57.6]} 5. Bb2 {[%clk 0:03:00.4]}
5... Nbd7 {[%clk 0:02:56.8]} 6. d3 {[%clk 0:03:00.5]} 6... e6 {[%clk 0:02:57.9]}
7. Be2 {[%clk 0:03:00.3]} 7... h6 {[%clk 0:02:59]} 8. O-O {[%clk 0:03:01]} 8...
Bd6 {[%clk 0:03:00.3]} 9. Nbd2 {[%clk 0:03:00.9]} 9... O-O {[%clk 0:02:58.5]}
10. Qc2 {[%clk 0:03:01.8]} 10... Bh7 {[%clk 0:02:59.2]} 11. Rfd1 {[%clk
0:03:01.7]} 11... e5 {[%clk 0:02:58]} 12. Rac1 {[%clk 0:02:57.9]} 12... e4
{[%clk 0:02:58.7]} 13. dxe4 {[%clk 0:02:59.1]} 13... Nxe4 {[%clk 0:02:59.4]} 14.
Nxe4 {[%clk 0:02:59.6]} 14... Bxe4 {[%clk 0:02:59.8]} 15. Qc3 {[%clk 0:02:53.5]}
15... Nf6 {[%clk 0:02:44.4]} 16. cxd5 {[%clk 0:02:52.1]} 16... cxd5 {[%clk
0:02:46.3]} 17. Nd2 {[%clk 0:02:41.9]} 17... Bg6 {[%clk 0:02:16.7]} 18. Bd3
{[%clk 0:01:51.3]} 18... Rc8 {[%clk 0:01:55.3]} 19. Qxc8 {[%clk 0:01:47.3]}
19... Qxc8 {[%clk 0:01:57.2]} 20. Rxc8 {[%clk 0:01:48.2]} 20... Rxc8 {[%clk
0:01:58.7]} 21. Bxg6 {[%clk 0:01:48.9]} 21... fxg6 {[%clk 0:02:00.6]} 22. Bxf6
{[%clk 0:01:48.8]} 22... gxf6 {[%clk 0:01:57.1]} 23. Nf3 {[%clk 0:01:45.1]}
23... Rc2 {[%clk 0:01:53.9]} 24. g4 {[%clk 0:01:46]} 24... Rxa2 {[%clk
0:01:48.4]} 25. Rxd5 {[%clk 0:01:46.8]} 25... Ra6 {[%clk 0:01:44.9]} 26. Nd4
{[%clk 0:01:36.6]} 26... Rb6 {[%clk 0:01:42.7]} 27. Nb5 {[%clk 0:01:33.2]} 27...
Be7 {[%clk 0:01:42]} 28. Nxa7 {[%clk 0:01:29.4]} 28... Rxb3 {[%clk 0:01:38.5]}
29. Nc8 {[%clk 0:01:30.1]} 29... Bf8 {[%clk 0:01:04]} 30. Rd7 {[%clk 0:01:22.5]}
30... b5 {[%clk 0:01:04.7]} 31. Kg2 {[%clk 0:01:12.2]} 31... b4 {[%clk
0:01:05.2]} 32. h4 {[%clk 0:01:08.5]} 32... Rb1 {[%clk 0:01:03.1]} 33. Rb7
{[%clk 0:01:05]} 33... b3 {[%clk 0:00:59]} 34. Ne7+ {[%clk 0:00:49.6]} 34...
Bxe7 {[%clk 0:00:50.6]} 35. Rxe7 {[%clk 0:00:51.5]} 35... b2 {[%clk 0:00:52.1]}
36. Rb7 {[%clk 0:00:51.9]} 36... Kf8 {[%clk 0:00:46.2]} 37. h5 {[%clk
0:00:31.1]} 37... gxh5 {[%clk 0:00:21.6]} 38. gxh5 {[%clk 0:00:33]} 38... Ke8
{[%clk 0:00:22.4]} 39. Kf3 {[%clk 0:00:33.5]} 39... Rh1 {[%clk 0:00:11.3]} 40.
Rxb2 {[%clk 0:00:32.5]} 40... Rxh5 {[%clk 0:00:12.8]} 41. Rb7 {[%clk 0:00:33.7]}
41... Rf5+ {[%clk 0:00:11.1]} 42. Kg3 {[%clk 0:00:33.3]} 42... Kf8 {[%clk
0:00:08.6]} 43. e4 {[%clk 0:00:26.4]} 43... Rg5+ {[%clk 0:00:07]} 44. Kf4 {[%clk
0:00:24.8]} 44... Rg7 {[%clk 0:00:05.1]} 45. Rb6 {[%clk 0:00:22.9]} 45... Kf7
{[%clk 0:00:03.9]} 46. Rb5 {[%clk 0:00:23.5]} 46... Kg6 {[%clk 0:00:04.1]} 47.
Kg3 {[%clk 0:00:21.5]} 47... Re7 {[%clk 0:00:03.7]} 48. Rb4 {[%clk 0:00:21.7]}
1-0

[Event "*** Titled Tuesday Blitz"]
[Site "Chess.com"]
[Date "2019.03.05"]
[Round "3"]
[White "bluejay1897"]
[Black "vgyogi"]
[Result "0-1"]
[WhiteElo "2143"]
[BlackElo "2114"]
[TimeControl "180+2"]
[EndTime "13:42:41 PST"]
[Termination "vgyogi won by resignation"]

1. Nf3 {[%clk 0:03:01.9]} 1... d5 {[%clk 0:02:59.8]} 2. g3 {[%clk 0:03:02.6]}
2... Nf6 {[%clk 0:02:59]} 3. Bg2 {[%clk 0:03:03.2]} 3... c5 {[%clk 0:03:00.3]}
4. O-O {[%clk 0:03:03.5]} 4... e6 {[%clk 0:03:01.8]} 5. d4 {[%clk 0:03:02.5]}
5... Nc6 {[%clk 0:02:59.7]} 6. c4 {[%clk 0:03:02.9]} 6... dxc4 {[%clk
0:02:59.4]} 7. dxc5 {[%clk 0:03:03.8]} 7... Qxd1 {[%clk 0:02:58.4]} 8. Rxd1
{[%clk 0:03:05.7]} 8... Bxc5 {[%clk 0:02:59]} 9. Nbd2 {[%clk 0:03:06.9]} 9... a6
{[%clk 0:02:55.4]} 10. Nxc4 {[%clk 0:03:02.7]} 10... Ke7 {[%clk 0:02:56.5]} 11.
a3 {[%clk 0:02:41]} 11... Rd8 {[%clk 0:02:53.5]} 12. Bg5 {[%clk 0:02:39.3]}
12... Bd7 {[%clk 0:02:14.7]} 13. b4 {[%clk 0:02:33.5]} 13... Ba7 {[%clk
0:02:14.6]} 14. Nfe5 {[%clk 0:02:25.4]} 14... Be8 {[%clk 0:02:07.6]} 15. Nxc6+
{[%clk 0:02:16.5]} 15... Bxc6 {[%clk 0:02:07.5]} 16. Bxc6 {[%clk 0:02:16.4]}
16... bxc6 {[%clk 0:02:08.5]} 17. Ne5 {[%clk 0:02:07.3]} 17... Rd6 {[%clk
0:01:01.9]} 18. Rxd6 {[%clk 0:01:59.4]} 18... Kxd6 {[%clk 0:01:02.6]} 19. Nxf7+
{[%clk 0:02:00.8]} 19... Kc7 {[%clk 0:01:02]} 20. Bf4+ {[%clk 0:01:58.1]} 20...
Kb6 {[%clk 0:00:47.5]} 21. Rc1 {[%clk 0:01:42.4]} 21... Nd5 {[%clk 0:00:45.5]}
22. Be5 {[%clk 0:01:41.7]} 22... g6 {[%clk 0:00:44.4]} 23. Nd6 {[%clk
0:01:26.9]} 23... Bb8 {[%clk 0:00:39.7]} 24. Nc4+ {[%clk 0:01:27]} 24... Kb5
{[%clk 0:00:33.2]} 25. e4 {[%clk 0:00:49.6]} 25... Bxe5 {[%clk 0:00:25.2]} 26.
Nxe5 {[%clk 0:00:50.1]} 26... Ne7 {[%clk 0:00:26.6]} 27. Rc5+ {[%clk 0:00:46.1]}
27... Ka4 {[%clk 0:00:21]} 28. Nxc6 {[%clk 0:00:44.8]} 28... Nxc6 {[%clk
0:00:20.5]} 29. Rxc6 {[%clk 0:00:45.8]} 29... Kxa3 {[%clk 0:00:21.7]} 30. Rxe6
{[%clk 0:00:45.9]} 30... Kxb4 {[%clk 0:00:23.1]} 31. Rb6+ {[%clk 0:00:46.5]}
31... Kc5 {[%clk 0:00:23.1]} 32. Rb1 {[%clk 0:00:43.9]} 32... a5 {[%clk
0:00:24.4]} 33. Kf1 {[%clk 0:00:44.6]} 33... a4 {[%clk 0:00:25.5]} 34. Ke2
{[%clk 0:00:45.8]} 34... Kd4 {[%clk 0:00:26.6]} 35. f3 {[%clk 0:00:40.5]} 35...
Kc3 {[%clk 0:00:27.6]} 36. Kd1 {[%clk 0:00:35.6]} 36... a3 {[%clk 0:00:28]} 37.
Kc1 {[%clk 0:00:36.4]} 37... a2 {[%clk 0:00:26.8]} 38. Ra1 {[%clk 0:00:36]}
38... Kb3 {[%clk 0:00:22]} 39. e5 {[%clk 0:00:33]} 39... Rc8+ {[%clk 0:00:22.5]}
40. Kd2 {[%clk 0:00:33]} 40... Rc2+ {[%clk 0:00:23.1]} 41. Ke3 {[%clk
0:00:32.7]} 41... Kb2 {[%clk 0:00:19.5]} 42. Rxa2+ {[%clk 0:00:31.2]} 42... Kxa2
{[%clk 0:00:20.3]} 43. e6 {[%clk 0:00:32.4]} 43... Rc6 {[%clk 0:00:19.4]} 44.
Kf4 {[%clk 0:00:31.8]} 44... Rxe6 {[%clk 0:00:20.4]} 45. Kg5 {[%clk 0:00:33.3]}
45... Re2 {[%clk 0:00:18.3]} 46. h4 {[%clk 0:00:34]} 46... Kb3 {[%clk
0:00:17.4]} 47. Kh6 {[%clk 0:00:31.9]} 47... Re7 {[%clk 0:00:18.7]} 48. g4
{[%clk 0:00:30.7]} 48... Kc4 {[%clk 0:00:19.8]} 49. Kg5 {[%clk 0:00:32.1]} 49...
Kd5 {[%clk 0:00:20.6]} 50. Kf6 {[%clk 0:00:33.2]} 50... Ra7 {[%clk 0:00:20]} 51.
f4 {[%clk 0:00:32.5]} 51... Ke4 {[%clk 0:00:20.8]} 52. f5 {[%clk 0:00:33.6]}
52... gxf5 {[%clk 0:00:21.3]} 53. gxf5 {[%clk 0:00:34.7]} 53... Kf4 {[%clk
0:00:22.2]} 54. h5 {[%clk 0:00:33.8]} 54... Ra5 {[%clk 0:00:20.1]} 55. h6 {[%clk
0:00:32.9]} 55... Rxf5+ {[%clk 0:00:19.6]} 56. Kg7 {[%clk 0:00:34.2]} 56... Kg5
{[%clk 0:00:19.5]} 57. Kxh7 {[%clk 0:00:34.6]} 57... Rf6 {[%clk 0:00:20.9]} 0-1

[Event "*** Titled Tuesday Blitz"]
[Site "Chess.com"]
[Date "2019.03.05"]
[Round "3"]
[White "GremioPrudente"]
[Black "GrandGlacier"]
[Result "0-1"]
[WhiteElo "2062"]
[BlackElo "2148"]
[TimeControl "180+2"]
[EndTime "13:42:44 PST"]
[Termination "GrandGlacier won on time"]

1. Nf3 {[%clk 0:03:01.9]} 1... Nf6 {[%clk 0:03:00.3]} 2. c4 {[%clk 0:03:02.3]}
2... g6 {[%clk 0:02:59.4]} 3. b3 {[%clk 0:03:02.7]} 3... Bg7 {[%clk 0:02:59.1]}
4. Bb2 {[%clk 0:03:04.2]} 4... O-O {[%clk 0:02:59.7]} 5. e3 {[%clk 0:03:01]}
5... a5 {[%clk 0:03:00.4]} 6. Be2 {[%clk 0:03:00.4]} 6... d5 {[%clk 0:02:52.3]}
7. O-O {[%clk 0:02:58.3]} 7... Nc6 {[%clk 0:02:48.3]} 8. cxd5 {[%clk 0:02:52.2]}
8... Nxd5 {[%clk 0:02:48.7]} 9. Bxg7 {[%clk 0:02:52.8]} 9... Kxg7 {[%clk
0:02:50.6]} 10. Nc3 {[%clk 0:02:53.2]} 10... Nxc3 {[%clk 0:02:45.7]} 11. dxc3
{[%clk 0:02:54]} 11... e5 {[%clk 0:02:45.1]} 12. Bb5 {[%clk 0:02:43.7]} 12...
Qe7 {[%clk 0:02:45.1]} 13. Bxc6 {[%clk 0:02:41.2]} 13... bxc6 {[%clk 0:02:47]}
14. Qc2 {[%clk 0:02:33.1]} 14... Ba6 {[%clk 0:02:26.4]} 15. Rfc1 {[%clk
0:02:14.9]} 15... c5 {[%clk 0:02:23.2]} 16. Qe4 {[%clk 0:02:10.7]} 16... Rfe8
{[%clk 0:02:15.6]} 17. c4 {[%clk 0:02:03.4]} 17... Rab8 {[%clk 0:02:06.5]} 18.
Rd1 {[%clk 0:01:55.7]} 18... Bb7 {[%clk 0:02:05.6]} 19. Qh4 {[%clk 0:01:37.5]}
19... f6 {[%clk 0:02:01.8]} 20. Nd2 {[%clk 0:01:29.8]} 20... Qe6 {[%clk
0:01:35.4]} 21. Ne4 {[%clk 0:01:25.8]} 21... g5 {[%clk 0:01:35]} 22. Nxc5 {[%clk
0:01:25.6]} 22... gxh4 {[%clk 0:01:34.5]} 23. Nxe6+ {[%clk 0:01:26.2]} 23...
Rxe6 {[%clk 0:01:36.4]} 24. Rd7+ {[%clk 0:01:26.6]} 24... Kh6 {[%clk 0:01:35.3]}
25. Rxc7 {[%clk 0:01:27.6]} 25... f5 {[%clk 0:01:09.4]} 26. Rd1 {[%clk
0:01:24.6]} 26... Rg6 {[%clk 0:01:01.7]} 27. g3 {[%clk 0:01:21.4]} 27... Bf3
{[%clk 0:00:56.6]} 28. Rdd7 {[%clk 0:01:20.9]} 28... hxg3 {[%clk 0:00:49.9]} 29.
Rxh7+ {[%clk 0:01:19.4]} 29... Kg5 {[%clk 0:00:50.7]} 30. fxg3 {[%clk
0:01:11.4]} 30... Rd8 {[%clk 0:00:49]} 31. Kf2 {[%clk 0:00:53.6]} 31... e4
{[%clk 0:00:49.2]} 32. Rhd7 {[%clk 0:00:49.4]} 32... Rd6 {[%clk 0:00:48.6]} 33.
h4+ {[%clk 0:00:44.5]} 33... Kf6 {[%clk 0:00:48.6]} 34. Rf7+ {[%clk 0:00:33]}
34... Ke5 {[%clk 0:00:49.2]} 35. Rfe7+ {[%clk 0:00:17.5]} 35... Re6 {[%clk
0:00:48.7]} 36. Rc5+ {[%clk 0:00:10.5]} 36... Kd6 {[%clk 0:00:41.5]} 37. Rxe6+
{[%clk 0:00:04.7]} 37... Kxc5 {[%clk 0:00:28.3]} 38. Re5+ {[%clk 0:00:05]} 38...
Kb4 {[%clk 0:00:29]} 39. Rxf5 {[%clk 0:00:05.9]} 39... Rd2+ {[%clk 0:00:28.5]}
40. Ke1 {[%clk 0:00:06.1]} 40... Re2+ {[%clk 0:00:25.2]} 41. Kf1 {[%clk
0:00:07.1]} 41... Rxa2 {[%clk 0:00:25.6]} 42. Rb5+ {[%clk 0:00:07]} 42... Kc3
{[%clk 0:00:23.3]} 43. h5 {[%clk 0:00:08.5]} 43... Kd3 {[%clk 0:00:20.1]} 44.
Rd5+ {[%clk 0:00:03]} 44... Kxe3 {[%clk 0:00:20.6]} 45. Kg1 {[%clk 0:00:03.2]}
45... Ra1+ {[%clk 0:00:20.4]} 0-1

[Event "*** Titled Tuesday Blitz"]
[Site "Chess.com"]
[Date "2019.03.05"]
[Round "3"]
[White "W_Amadeus"]
[Black "marianokar"]
[Result "0-1"]
[WhiteElo "2629"]
[BlackElo "2443"]
[TimeControl "180+2"]
[EndTime "13:42:51 PST"]
[Termination "marianokar won by resignation"]

1. e4 {[%clk 0:03:01.9]} 1... e5 {[%clk 0:02:58.6]} 2. Nf3 {[%clk 0:03:03.1]}
2... Nc6 {[%clk 0:02:59.9]} 3. Bb5 {[%clk 0:03:04.1]} 3... Nf6 {[%clk
0:03:00.2]} 4. O-O {[%clk 0:03:04.8]} 4... Nxe4 {[%clk 0:03:01.1]} 5. d4 {[%clk
0:03:06.4]} 5... Nd6 {[%clk 0:03:01.9]} 6. Bxc6 {[%clk 0:03:08]} 6... dxc6
{[%clk 0:03:03.8]} 7. dxe5 {[%clk 0:03:09.4]} 7... Nf5 {[%clk 0:03:05.4]} 8.
Qxd8+ {[%clk 0:03:11]} 8... Kxd8 {[%clk 0:03:07.3]} 9. h3 {[%clk 0:03:12.5]}
9... Ke8 {[%clk 0:03:05.2]} 10. Nc3 {[%clk 0:03:13]} 10... Ne7 {[%clk
0:03:06.1]} 11. Bf4 {[%clk 0:02:51.3]} 11... Ng6 {[%clk 0:03:00]} 12. Bh2 {[%clk
0:02:52]} 12... Bb4 {[%clk 0:02:56.9]} 13. Ne2 {[%clk 0:02:29.5]} 13... Nf8
{[%clk 0:02:51.8]} 14. c3 {[%clk 0:02:25.6]} 14... Be7 {[%clk 0:02:51.6]} 15.
Rfd1 {[%clk 0:02:08.4]} 15... c5 {[%clk 0:02:47.9]} 16. Nf4 {[%clk 0:02:08]}
16... Ne6 {[%clk 0:02:39.4]} 17. Nd5 {[%clk 0:02:03.3]} 17... b6 {[%clk
0:02:25.4]} 18. Nd2 {[%clk 0:01:46.7]} 18... Bb7 {[%clk 0:02:22]} 19. c4 {[%clk
0:01:44.9]} 19... Bd8 {[%clk 0:01:59.2]} 20. Ne4 {[%clk 0:01:26.4]} 20... h5
{[%clk 0:01:57.3]} 21. a3 {[%clk 0:01:12.1]} 21... a5 {[%clk 0:01:31.9]} 22.
Nec3 {[%clk 0:01:02.2]} 22... Ba6 {[%clk 0:01:11.5]} 23. Nb5 {[%clk 0:00:48.4]}
23... Bxb5 {[%clk 0:01:11.6]} 24. cxb5 {[%clk 0:00:50.3]} 24... a4 {[%clk
0:01:10]} 25. Rac1 {[%clk 0:00:37]} 25... Ra5 {[%clk 0:01:01.2]} 26. Rc4 {[%clk
0:00:37.4]} 26... h4 {[%clk 0:00:54.5]} 27. Nc3 {[%clk 0:00:28.5]} 27... Nd4
{[%clk 0:00:52.2]} 28. Kf1 {[%clk 0:00:26.6]} 28... Rh5 {[%clk 0:00:49.7]} 29.
Rxa4 {[%clk 0:00:25]} 29... Rxa4 {[%clk 0:00:49.6]} 30. Nxa4 {[%clk 0:00:26.4]}
30... Nxb5 {[%clk 0:00:51.3]} 31. Nc3 {[%clk 0:00:24.8]} 31... Nd4 {[%clk
0:00:50.6]} 32. b4 {[%clk 0:00:15.6]} 32... Rf5 {[%clk 0:00:47.5]} 33. bxc5
{[%clk 0:00:15.9]} 33... bxc5 {[%clk 0:00:48.6]} 34. Ne4 {[%clk 0:00:17.2]}
34... Be7 {[%clk 0:00:46.5]} 35. a4 {[%clk 0:00:18.6]} 35... Kd7 {[%clk
0:00:44.3]} 36. a5 {[%clk 0:00:15.5]} 36... Kc6 {[%clk 0:00:45.3]} 37. a6 {[%clk
0:00:16.9]} 37... Kb6 {[%clk 0:00:45.7]} 38. Ra1 {[%clk 0:00:17.8]} 38... Ka7
{[%clk 0:00:46.1]} 39. f3 {[%clk 0:00:16.6]} 39... Rh5 {[%clk 0:00:39.2]} 40.
Nc3 {[%clk 0:00:15.9]} 40... Rh6 {[%clk 0:00:39]} 41. Bg1 {[%clk 0:00:16.4]}
41... Rxa6 {[%clk 0:00:37.9]} 42. Rxa6+ {[%clk 0:00:16.5]} 42... Kxa6 {[%clk
0:00:38.5]} 43. Nd5 {[%clk 0:00:17.1]} 43... Bd8 {[%clk 0:00:38.6]} 44. Bxd4
{[%clk 0:00:14.2]} 44... cxd4 {[%clk 0:00:39]} 45. Ke2 {[%clk 0:00:15.7]} 45...
c5 {[%clk 0:00:38.3]} 46. Nf4 {[%clk 0:00:13.3]} 46... Kb5 {[%clk 0:00:35.1]}
47. e6 {[%clk 0:00:06.7]} 47... fxe6 {[%clk 0:00:35.3]} 48. Nxe6 {[%clk
0:00:08.6]} 48... Bf6 {[%clk 0:00:36]} 49. Nc7+ {[%clk 0:00:09.3]} 49... Kc4
{[%clk 0:00:35.6]} 50. Ne8 {[%clk 0:00:07.7]} 50... Kc3 {[%clk 0:00:35.8]} 51.
Kd1 {[%clk 0:00:07.8]} 51... Kd3 {[%clk 0:00:35]} 52. Nd6 {[%clk 0:00:08.9]}
52... c4 {[%clk 0:00:35]} 53. Ne4 {[%clk 0:00:09.3]} 53... c3 {[%clk 0:00:35.5]}
54. Nf2+ {[%clk 0:00:10.7]} 54... Ke3 {[%clk 0:00:35.9]} 55. Ng4+ {[%clk
0:00:12.1]} 55... Kf4 {[%clk 0:00:36.3]} 0-1

[Event "*** Titled Tuesday Blitz"]
[Site "Chess.com"]
[Date "2019.03.05"]
[Round "3"]
[White "Anurag328"]
[Black "RegZryt"]
[Result "0-1"]
[WhiteElo "2640"]
[BlackElo "2449"]
[TimeControl "180+2"]
[EndTime "13:42:52 PST"]
[Termination "RegZryt won on time"]

1. e3 {[%clk 0:03:01.5]} 1... d5 {[%clk 0:03:00.6]} 2. b3 {[%clk 0:03:03]} 2...
Nf6 {[%clk 0:03:01]} 3. Bb2 {[%clk 0:03:04.6]} 3... g6 {[%clk 0:03:01.5]} 4. h3
{[%clk 0:03:06.2]} 4... Bg7 {[%clk 0:03:02.5]} 5. a3 {[%clk 0:03:07.7]} 5... O-O
{[%clk 0:03:03.4]} 6. g3 {[%clk 0:03:09.3]} 6... c5 {[%clk 0:03:04.6]} 7. d3
{[%clk 0:03:10.8]} 7... Nc6 {[%clk 0:03:05.7]} 8. Nd2 {[%clk 0:03:12.4]} 8... e5
{[%clk 0:03:06.7]} 9. Bg2 {[%clk 0:03:14]} 9... Be6 {[%clk 0:03:06.9]} 10. Ne2
{[%clk 0:03:15.5]} 10... Rc8 {[%clk 0:03:03.3]} 11. O-O {[%clk 0:03:15.9]} 11...
Nd7 {[%clk 0:03:03.2]} 12. f4 {[%clk 0:03:15]} 12... exf4 {[%clk 0:03:02.2]} 13.
Bxg7 {[%clk 0:03:15.2]} 13... Kxg7 {[%clk 0:03:03.2]} 14. Nxf4 {[%clk
0:03:15.4]} 14... Qg5 {[%clk 0:02:59.4]} 15. Kh2 {[%clk 0:03:13.3]} 15... Nb6
{[%clk 0:02:46.1]} 16. e4 {[%clk 0:03:13.1]} 16... d4 {[%clk 0:02:43.4]} 17. Nf3
{[%clk 0:03:14.2]} 17... Qe7 {[%clk 0:02:42.6]} 18. Qd2 {[%clk 0:03:15]} 18...
Nd7 {[%clk 0:02:41.3]} 19. e5 {[%clk 0:03:02.4]} 19... Ndxe5 {[%clk 0:02:34.6]}
20. Nxe5 {[%clk 0:03:04.3]} 20... Nxe5 {[%clk 0:02:36.1]} 21. Rae1 {[%clk
0:03:06]} 21... f6 {[%clk 0:02:15]} 22. Bxb7 {[%clk 0:03:06.9]} 22... Rb8 {[%clk
0:02:11.4]} 23. Bg2 {[%clk 0:03:01.8]} 23... Bg8 {[%clk 0:02:12]} 24. Re2 {[%clk
0:02:57]} 24... Qd6 {[%clk 0:02:05.4]} 25. Qa5 {[%clk 0:02:23.3]} 25... a6
{[%clk 0:02:06.4]} 26. Be4 {[%clk 0:02:14.2]} 26... Rb5 {[%clk 0:01:54.4]} 27.
Qd2 {[%clk 0:02:14.6]} 27... Rbb8 {[%clk 0:01:54.2]} 28. Ref2 {[%clk 0:01:46.9]}
28... Rbe8 {[%clk 0:01:45.6]} 29. Qa5 {[%clk 0:01:46.6]} 29... Re7 {[%clk
0:01:46]} 30. b4 {[%clk 0:01:35.8]} 30... cxb4 {[%clk 0:01:46]} 31. axb4 {[%clk
0:01:37.7]} 31... Rb8 {[%clk 0:01:37.1]} 32. Bd5 {[%clk 0:01:18.5]} 32... Rb5
{[%clk 0:01:31.3]} 33. Qa2 {[%clk 0:01:09.9]} 33... Bxd5 {[%clk 0:01:32]} 34.
Nxd5 {[%clk 0:01:11]} 34... Qxd5 {[%clk 0:01:33]} 35. Qxa6 {[%clk 0:01:12.7]}
35... f5 {[%clk 0:01:29.5]} 36. g4 {[%clk 0:00:59.6]} 36... Qc6 {[%clk
0:01:30.4]} 37. Qxc6 {[%clk 0:00:37.3]} 37... Nxc6 {[%clk 0:01:32.3]} 38. gxf5
{[%clk 0:00:39.2]} 38... Rxf5 {[%clk 0:01:32.7]} 39. Rxf5 {[%clk 0:00:41.1]}
39... gxf5 {[%clk 0:01:34.1]} 40. Rxf5 {[%clk 0:00:43]} 40... Nxb4 {[%clk
0:01:31.7]} 41. Rc5 {[%clk 0:00:25.2]} 41... Re2+ {[%clk 0:01:32.3]} 42. Kg3
{[%clk 0:00:26.7]} 42... Nxc2 {[%clk 0:01:33.6]} 43. Kf4 {[%clk 0:00:11.6]}
43... Ne1 {[%clk 0:01:31.6]} 44. Rc7+ {[%clk 0:00:12]} 44... Kf6 {[%clk
0:01:25.7]} 45. Rc6+ {[%clk 0:00:13.3]} 45... Re6 {[%clk 0:01:18.6]} 46. Rc4
{[%clk 0:00:03.2]} 46... Nxd3+ {[%clk 0:01:18.7]} 47. Kg3 {[%clk 0:00:02.7]}
47... Ke5 {[%clk 0:01:19.3]} 48. Rc7 {[%clk 0:00:03]} 48... h6 {[%clk
0:01:19.9]} 49. Kh4 {[%clk 0:00:04.5]} 49... Ke4 {[%clk 0:01:20]} 50. Rf7 {[%clk
0:00:05.4]} 50... Ne5 {[%clk 0:01:19.9]} 51. Rf1 {[%clk 0:00:04.8]} 51... d3
{[%clk 0:01:20.8]} 52. Kh5 {[%clk 0:00:06.4]} 52... d2 {[%clk 0:01:21.5]} 53. h4
{[%clk 0:00:07.9]} 53... Nf3 {[%clk 0:01:09.7]} 54. Rd1 {[%clk 0:00:08.4]} 54...
Ke3 {[%clk 0:01:09.6]} 55. Rf1 {[%clk 0:00:08.8]} 55... Ne1 {[%clk 0:01:05.4]}
0-1